bitfinex-derivatives/quotes_SOLF0:USTF0_20250623
["timestamp","ask_amount","ask_price","bid_price","bid_amount"]
[1750638195920,190.76,132.28,132.23,7.5599]
[1750638196525,7.5583,132.27,132.24,7.5596]
[1750638197326,198.3175,132.28,132.24,7.5596]
[1750638197622,198.3175,132.28,132.25,7.559]
[1750638197823,198.3175,132.28,132.22,2.3333]
[1750638198026,198.3175,132.28,132.24,7.5595]
[1750638198223,7.5581,132.27,132.24,7.5595]
[1750638198619,8.22589933,132.27,132.22,7.5606]
[1750638198828,190.74,132.26,132.18,10.54629933]
[1750638199331,190.74,132.26,132.23,7.5599]
[1750638199823,190.74,132.26,132.24,7.5597]
[1750638200423,15.78439933,132.27,132.24,7.5597]
[1750638200626,42.26,132.27,132.22,8.22589933]
[1750638201229,42.26,132.27,132.26,7.5585]
[1750638201727,42.26,132.27,132.2,42.26]
[1750638201728,42.26,132.27,132.25,7.5589]
[1750638201919,42.26,132.27,132.2,8.22589933]
[1750638202117,50.48589933,132.27,132.18,10.54629933]
[1750638203829,7.5597,132.24,132.21,7.561]
[1750638204021,42.26,132.23,132.2,8.22589933]
[1750638205726,42.26,132.23,132.2,15.78769933]
[1750638205926,42.26,132.23,132.2,8.22589933]
[1750638206228,42.26,132.23,132.2,7.5616]
[1750638206531,42.26,132.23,132.18,8.22589933]
[1750638206721,47.124,132.23,132.16,8.22589933]
[1750638207123,7.5618,132.21,132.16,8.22589933]
[1750638207630,7.561,132.22,132.16,8.22589933]
[1750638207929,47.124,132.23,132.16,8.22589933]
[1750638208123,47.124,132.23,132.18,7.5627]
[1750638208334,47.124,132.23,132.18,8.22589933]
[1750638208821,7.5617,132.21,132.18,8.22589933]
[1750638209018,7.5617,132.21,132.16,8.22589933]
[1750638209331,7.5617,132.21,132.17,7.5632]
[1750638209522,7.5617,132.21,132.16,8.22589933]
[1750638209725,7.5609,132.22,132.16,8.22589933]
[1750638211019,47.124,132.23,132.16,8.22589933]
[1750638211630,7.5618,132.21,132.17,7.5635]
[1750638211830,47.124,132.23,132.17,7.5635]
[1750638212529,6.09488715,132.22,132.16,7.5643]
[1750638212727,79.09488715,132.22,132.16,7.5643]
[1750638213032,73.0,132.22,132.15,8.22589933]
[1750638213426,7.5624,132.2,132.15,8.22589933]
[1750638213626,42.26,132.19,132.13,2.4787]
[1750638213831,42.26,132.19,132.13,10.70459933]
[1750638214031,190.9,132.19,132.13,10.70459933]
[1750638214326,199.12589933,132.19,132.1,8.22589933]
[1750638215134,7.5647,132.16,132.12,7.5663]
[1750638215333,42.26,132.15,132.12,7.5663]
[1750638216332,42.26,132.15,132.13,7.5659]
[1750638216927,42.26,132.15,132.1,8.22589933]
[1750638217127,42.26,132.18,132.14,8.22589933]
[1750638217431,42.26,132.18,132.16,7.5637]
[1750638217631,42.26,132.18,132.14,8.22589933]
[1750638218429,42.26,132.18,132.17,7.5637]
[1750638218734,42.26,132.18,132.09,2.5025]
[1750638218935,7.5663,132.13,132.07,12.85949933]
[1750638219130,42.28,132.12,132.07,12.85949933]
[1750638219335,42.28,132.12,132.1,7.5673]
[1750638220235,42.28,132.12,132.07,12.85949933]
[1750638220429,42.28,132.12,132.09,8.22589933]
[1750638221934,42.28,132.12,132.11,7.5671]
[1750638223232,42.28,132.17,132.11,8.22589933]
[1750638223436,42.28,132.17,132.08,8.22589933]
[1750638223437,42.28,132.17,132.13,8.22589933]
[1750638223939,13.02059933,132.23,132.15,8.22589933]
[1750638224131,269.85594008,132.22,132.16,7.5639]
[1750638224330,263.8,132.22,132.16,7.5639]
[1750638225031,7.563,132.19,132.15,7.5644]
[1750638225232,42.28,132.18,132.15,7.5644]
[1750638225439,42.28,132.18,132.14,8.22589933]
[1750638225928,42.28,132.18,132.15,7.5647]
[1750638226328,42.28,132.18,132.14,8.22589933]
[1750638226931,42.28,132.18,132.16,7.5639]
[1750638228240,42.28,132.18,132.17,7.5637]
[1750638228440,42.28,132.18,132.12,2.4148]
[1750638228740,42.28,132.18,132.14,8.22589933]
[1750638229235,42.28,132.18,132.17,7.5637]
[1750638232339,42.28,132.18,132.17,15.80024142]
[1750638234453,42.28,132.18,132.17,12.96878747]
[1750638240852,42.28,132.18,132.17,7.5637]
[1750638241046,42.28,132.18,132.16,7.564]
[1750638242255,42.28,132.18,132.17,7.5637]
[1750638243456,42.28,132.18,132.17,12.96878747]
[1750638244352,42.12,132.22,132.17,5.40508747]
[1750638244550,42.12,132.22,132.19,5.40508747]
[1750638244752,42.12,132.22,132.12,2.4148]
[1750638244952,6.13509898,132.21,132.18,7.563]
[1750638245155,42.12,132.22,132.19,5.40508747]
[1750638245460,42.12,132.22,132.21,12.96648747]
[1750638245656,42.12,132.22,132.19,5.40508747]
[1750638246560,42.12,132.22,132.21,7.5614]
[1750638246960,42.12,132.23,132.19,5.40508747]
[1750638247964,42.12,132.23,132.22,7.5608]
[1750638248163,48.26370208,132.23,132.22,7.5608]
[1750638248658,48.26359361,132.23,132.22,7.5608]
[1750638248863,48.26449945,132.23,132.21,7.5612]
[1750638249066,42.12,132.23,132.21,7.5612]
[1750638251864,42.12,132.23,132.22,7.5608]
[1750638252065,196.66441793,132.23,132.22,7.5608]
[1750638252261,196.66441793,132.23,132.19,5.40508747]
[1750638252461,190.52,132.23,132.21,7.5611]
[1750638252969,42.12,132.23,132.21,7.5611]
[1750638253166,198.0403,132.23,132.2,7.5617]
[1750638253370,190.48,132.23,132.18,5.40388376]
[1750638254266,42.12,132.23,132.2,5.40388376]
[1750638254574,192.8504,132.29,132.22,5.40388376]
[1750638254769,6.14714289,132.28,132.25,5.40388376]
[1750638254962,42.12,132.29,132.25,5.40388376]
[1750638255364,42.12,132.29,132.27,5.40388376]
[1750638256660,42.12,132.29,132.28,7.5574]
[1750638258170,148.3,132.31,132.3,7.5562]
[1750638259165,190.34,132.32,132.31,7.5557]
[1750638259772,190.34,132.32,132.3,7.5561]
[1750638260270,42.1,132.32,132.3,7.5561]
[1750638260760,42.1,132.32,132.29,12.95333173]
[1750638261566,42.1,132.32,132.3,7.5562]
[1750638261972,42.1,132.32,132.29,5.39673173]
[1750638262271,42.1,132.32,132.31,7.5557]
[1750638262469,42.1,132.32,132.31,12.95243173]
[1750638262669,148.08,132.34,132.31,5.39673173]
[1750638263267,42.1,132.35,132.32,7.555]
[1750638263268,190.18,132.35,132.32,7.555]
[1750638264071,42.1,132.35,132.32,7.555]
[1750638264370,197.6934,132.35,132.32,7.555]
[1750638264569,190.14,132.35,132.32,7.555]
[1750638265078,42.1,132.35,132.33,7.5545]
[1750638265279,42.1,132.38,132.33,5.39673173]
[1750638265476,42.1,132.38,132.3,5.39673173]
[1750638265477,42.1,132.38,132.35,5.39673173]
[1750638265676,695.16,132.41,132.37,5.39673173]
[1750638265881,42.1,132.41,132.39,5.39673173]
[1750638266084,41.54,132.44,132.39,5.39673173]
[1750638266279,41.54,132.44,132.41,5.39673173]
[1750638267283,41.54,132.44,132.43,12.94553173]
[1750638268080,41.52,132.47,132.44,7.5478]
[1750638268279,189.52,132.47,132.42,8.20438109]
[1750638268881,41.52,132.47,132.42,8.20438109]
[1750638269083,2.4642,132.5,132.48,7.5458]
[1750638269393,41.52,132.5,132.46,8.20438109]
[1750638269679,41.52,132.5,132.42,41.52]
[1750638269680,41.52,132.5,132.45,10.68740584]
[1750638270181,41.52,132.5,132.46,7.5467]
[1750638270484,41.52,132.5,132.45,10.68740584]
[1750638270781,8.20050584,132.49,132.38,4.7418]
[1750638270984,10.65110584,132.49,132.4,8.20050584]
[1750638271985,7.5475,132.46,132.4,8.20050584]
[1750638272186,189.42,132.45,132.4,8.20050584]
[1750638273283,189.42,132.45,132.42,7.5489]
[1750638274683,196.9678,132.45,132.41,7.5498]
[1750638275988,189.42,132.45,132.42,7.5494]
[1750638276392,189.42,132.45,132.39,8.20050584]
[1750638276689,189.42,132.45,132.41,7.5498]
[1750638276890,196.9679,132.45,132.41,7.5498]
[1750638277292,189.42,132.45,132.39,8.20050584]
[1750638277493,196.9677,132.45,132.39,8.20050584]
[1750638277888,196.9677,132.45,132.38,4.7418]
[1750638278089,189.42,132.45,132.39,8.20050584]
[1750638278791,196.9677,132.45,132.41,7.5497]
[1750638279189,189.42,132.45,132.37,8.20050584]
[1750638279385,8.20050584,132.43,132.35,10.60410584]
[1750638279893,7.5494,132.42,132.37,7.552]
[1750638280090,8.20050584,132.4,132.3,8.20050584]
[1750638280291,8.20050584,132.36,132.3,2.3007]
[1750638280493,41.5,132.35,132.33,7.5544]
[1750638280791,41.5,132.35,132.3,2.3007]
[1750638281193,41.5,132.35,132.32,7.5546]
[1750638281394,41.5,132.35,132.3,2.3007]
[1750638281595,41.5,132.35,132.3,10.50120584]
[1750638282584,41.5,132.35,132.34,7.554]
[1750638284291,41.5,132.35,132.3,2.3007]
[1750638284691,41.5,132.35,132.32,8.20050584]
[1750638285092,41.5,132.38,132.36,7.5528]
[1750638286097,41.5,132.38,132.35,7.5533]
[1750638288196,41.5,132.38,132.32,8.20050584]
[1750638288688,41.5,132.38,132.31,8.20050584]
[1750638289091,41.5,132.38,132.3,2.3007]
[1750638289304,8.20050584,132.37,132.3,2.3007]
[1750638289895,15.75280584,132.37,132.3,2.3007]
[1750638290293,8.20050584,132.37,132.3,2.3007]
[1750638290699,8.20050584,132.37,132.29,8.20050584]
[1750638290901,73.0,132.36,132.27,10.54220584]
[1750638291195,7.5534,132.35,132.31,7.5553]
[1750638291391,41.5,132.34,132.27,10.54220584]
[1750638292208,8.20050584,132.29,132.19,230.81341317]
[1750638292504,696.4147,132.34,132.22,8.20050584]
[1750638292505,41.5,132.28,132.22,8.20050584]
[1750638292697,41.5,132.27,132.22,8.20050584]
[1750638292897,41.5,132.29,132.24,8.20050584]
[1750638293300,41.5,132.29,132.2,8.20050584]
[1750638293301,8.20050584,132.28,132.2,8.20050584]
[1750638293607,41.5,132.29,132.22,8.20050584]
[1750638293993,49.0572,132.29,132.24,7.5593]
[1750638294399,49.057,132.29,132.24,7.5593]
[1750638295405,49.057,132.29,132.25,7.559]
[1750638297804,8.20050584,132.26,132.19,2.3317]
[1750638298110,8.20050584,132.24,132.14,42.72]
[1750638298312,42.72,132.23,132.17,8.20050584]
[1750638298504,10.55110584,132.28,132.19,8.20050584]
[1750638298698,42.72,132.26,132.21,8.20050584]
[1750638298902,42.72,132.29,132.24,7.5592]
[1750638299198,48.52253695,132.29,132.24,7.5592]
[1750638299403,42.72,132.29,132.24,7.5592]
[1750638300413,42.72,132.29,132.23,8.20050584]
[1750638301717,42.72,132.29,132.25,7.5587]
[1750638301914,2.3979,132.31,132.25,7.5587]
[1750638302117,42.72,132.3,132.25,7.5587]
[1750638303115,42.72,132.3,132.26,7.5585]
[1750638303615,42.72,132.3,132.23,8.20050584]
[1750638304218,7.557,132.29,132.23,8.20050584]
[1750638304512,42.72,132.33,132.27,8.20050584]
[1750638304814,7.5553,132.32,132.29,7.5568]
[1750638305019,42.72,132.33,132.29,7.5568]
[1750638305217,42.72,132.33,132.27,8.20050584]
[1750638305620,42.72,132.33,132.3,7.5559]
[1750638306320,702.7742,132.34,132.3,7.5559]
[1750638307414,42.72,132.34,132.29,8.20050584]
[1750638307612,42.72,132.34,132.31,8.20050584]
[1750638307813,42.72,132.34,132.32,7.5551]
[1750638308018,42.72,132.34,132.31,8.20050584]
[1750638309321,42.72,132.34,132.27,8.20050584]
[1750638309521,42.72,132.34,132.29,8.20050584]
[1750638310516,42.72,132.34,132.31,8.20050584]
[1750638310828,50.2725,132.37,132.31,8.20050584]
[1750638311217,42.72,132.37,132.31,8.20050584]
[1750638313522,42.72,132.37,132.33,8.20050584]
[1750638314416,42.72,132.37,132.35,7.553]
[1750638315018,42.72,132.37,132.36,7.5528]
[1750638315223,42.7,132.4,132.36,7.5528]
[1750638315722,50.2509,132.4,132.36,7.5528]
[1750638315924,42.7,132.4,132.35,7.5532]
[1750638316122,42.7,132.4,132.33,10.72760584]
[1750638316825,42.7,132.4,132.35,8.20050584]
[1750638317518,42.7,132.4,132.38,7.5515]
[1750638319419,42.7,132.4,132.37,7.5522]
[1750638320425,42.7,132.4,132.35,8.20050584]
[1750638320629,42.7,132.4,132.33,13.14630584]
[1750638321733,7.5512,132.39,132.35,7.5531]
[1750638322035,7.5512,132.39,132.33,13.14630584]
[1750638322630,42.7,132.4,132.33,13.14630584]
[1750638322832,42.7,132.4,132.35,8.20050584]
[1750638323335,42.7,132.4,132.37,7.5519]
[1750638323533,42.7,132.4,132.35,8.20050584]
[1750638324039,42.7,132.4,132.38,7.5513]
[1750638324531,42.7,132.4,132.37,7.552]
[1750638325236,42.7,132.4,132.38,7.5516]
[1750638326331,42.7,132.4,132.37,7.5518]
[1750638327235,42.7,132.4,132.35,8.20050584]
[1750638327632,50.2506,132.4,132.35,8.20050584]
[1750638328834,50.2506,132.4,132.37,7.5519]
[1750638329735,50.90050584,132.4,132.31,8.20050584]
[1750638329929,73.0,132.39,132.32,8.21632095]
[1750638330134,148.82,132.38,132.32,8.21632095]
[1750638330739,148.82,132.38,132.34,8.21632095]
[1750638331331,148.82,132.38,132.36,8.21632095]
[1750638331542,42.7,132.4,132.36,8.21632095]
[1750638331838,42.7,132.4,132.39,7.5511]
[1750638332034,148.78,132.41,132.39,7.5511]
[1750638332240,42.66,132.43,132.38,8.21632095]
[1750638332435,191.48,132.43,132.4,7.55]
[1750638332636,42.66,132.43,132.38,8.21632095]
[1750638333039,42.66,132.43,132.42,7.5494]
[1750638334349,42.66,132.43,132.41,7.5497]
[1750638334641,42.66,132.43,132.38,8.21632095]
[1750638335039,42.66,132.43,132.41,7.5498]
[1750638335743,42.66,132.43,132.42,7.5494]
[1750638337039,148.7,132.45,132.43,7.5487]
[1750638337340,191.32,132.46,132.43,7.5487]
[1750638337642,198.8673,132.46,132.43,7.5488]
[1750638337847,199.53632095,132.46,132.37,8.21632095]
[1750638338138,8.21632095,132.42,132.33,8.21632095]
[1750638338342,191.26,132.41,132.33,8.21632095]
[1750638338545,73.0,132.45,132.38,8.21159536]
[1750638338843,264.3,132.45,132.4,8.21159536]
[1750638339244,264.3,132.45,132.42,7.5494]
[1750638339745,191.3,132.45,132.42,7.5494]
[1750638342238,198.8478,132.45,132.42,7.5494]
[1750638342940,7.5484,132.44,132.41,7.5498]
[1750638343136,7.5484,132.44,132.38,8.21159536]
[1750638343335,81.21159536,132.44,132.36,13.03499536]
[1750638343637,73.0,132.43,132.36,2.472]
[1750638343837,7.5507,132.4,132.34,8.21159536]
[1750638344040,42.64,132.39,132.34,8.21159536]
[1750638344544,42.64,132.39,132.38,7.5517]
[1750638346242,42.64,132.39,132.37,7.5521]
[1750638346938,42.64,132.39,132.36,7.5526]
[1750638347142,42.64,132.39,132.34,8.21159536]
[1750638347546,42.64,132.39,132.37,7.5521]
[1750638348341,42.64,132.39,132.36,7.5526]
[1750638349455,73.0,132.38,132.31,4.8836]
[1750638349646,81.21159536,132.38,132.31,2.4957]
[1750638350044,7.5526,132.37,132.33,7.5541]
[1750638350244,148.94,132.36,132.33,7.5541]
[1750638350447,42.66,132.35,132.33,7.5541]
[1750638350655,42.66,132.35,132.27,8.21159536]
[1750638351250,42.66,132.35,132.31,7.5553]
[1750638352056,42.66,132.35,132.3,7.556]
[1750638352451,6.18727068,132.34,132.3,7.556]
[1750638353056,7.5548,132.33,132.3,7.556]
[1750638353253,45.1615,132.35,132.29,7.5566]
[1750638353456,14.38444987,132.34,132.25,10.67029536]
[1750638353755,8.21159536,132.32,132.25,10.67029536]
[1750638353957,191.52,132.31,132.27,7.5576]
[1750638354862,73.0,132.3,132.27,7.5576]
[1750638355662,80.5563,132.3,132.27,7.5576]
[1750638356355,7.5568,132.29,132.26,7.5584]
[1750638356562,81.21159536,132.3,132.23,8.21159536]
[1750638356857,73.0,132.29,132.23,8.21159536]
[1750638357261,73.0,132.34,132.27,8.21159536]
[1750638357466,652.38,132.39,132.29,8.21159536]
[1750638357467,42.66,132.35,132.29,8.21159536]
[1750638357656,42.66,132.35,132.33,7.5543]
[1750638358556,42.66,132.35,132.32,7.5549]
[1750638359366,50.2137,132.35,132.31,7.5554]
[1750638359561,42.66,132.35,132.31,7.5554]
[1750638360058,50.2136,132.35,132.32,7.555]
[1750638360254,42.66,132.35,132.32,7.555]
[1750638360459,42.66,132.35,132.28,8.21159536]
[1750638361266,42.66,132.35,132.32,8.21159536]
[1750638361462,42.66,132.35,132.34,7.554]
[1750638361664,115.5,132.38,132.34,8.21159536]
[1750638361863,42.5,132.38,132.34,8.21159536]
[1750638362264,8.21159536,132.35,132.27,8.21159536]
[1750638362566,42.5,132.34,132.27,8.21159536]
[1750638362768,42.5,132.34,132.31,7.5553]
[1750638363665,42.5,132.34,132.3,7.556]
[1750638364464,42.5,132.34,132.29,15.76829536]
[1750638364767,42.5,132.34,132.29,7.5567]
[1750638364977,50.0543,132.34,132.27,8.21159536]
[1750638365579,7.5546,132.33,132.27,8.21159536]
[1750638367579,7.5546,132.33,132.29,7.5564]
[1750638368978,7.5557,132.31,132.27,8.21159536]
[1750638369167,42.5,132.3,132.23,8.21159536]
[1750638369974,50.0564,132.3,132.23,8.21159536]
[1750638370574,7.557,132.29,132.25,7.559]
[1750638370775,7.557,132.29,132.23,8.21159536]
[1750638370968,42.5,132.3,132.26,7.5581]
[1750638370969,50.0563,132.3,132.26,7.5581]
[1750638372077,50.0563,132.3,132.27,7.5579]
[1750638372581,7.5569,132.29,132.23,8.21159536]
[1750638372972,7.5569,132.29,132.26,7.5582]
[1750638373374,50.0565,132.3,132.23,8.21159536]
[1750638373570,42.5,132.3,132.26,7.5582]
[1750638373774,7.5583,132.27,132.23,8.21159536]
[1750638373985,42.5,132.26,132.19,15.49119536]
[1750638374175,42.5,132.26,132.23,7.5598]
[1750638374378,42.5,132.26,132.21,8.21159536]
[1750638374882,42.5,132.26,132.24,7.5593]
[1750638375084,42.5,132.26,132.19,7.2796]
[1750638375294,42.5,132.26,132.19,15.49119536]
[1750638375585,58.27019536,132.26,132.22,7.5605]
[1750638376177,7.5593,132.25,132.22,7.5605]
[1750638376377,200.57159536,132.26,132.19,7.2796]
[1750638376775,7.5593,132.25,132.21,7.561]
[1750638377177,7.5593,132.25,132.19,7.2796]
[1750638377382,7.5593,132.25,132.21,7.561]
[1750638377885,7.5593,132.25,132.21,7.5609]
[1750638379185,7.5593,132.25,132.22,7.5608]
[1750638380382,208.13029536,132.26,132.22,7.5608]
[1750638380585,208.13029536,132.26,132.19,7.2796]
[1750638380586,192.36,132.26,132.2,8.23300799]
[1750638381082,200.59300799,132.26,132.19,7.2796]
[1750638381482,200.59300799,132.26,132.22,7.5605]
[1750638382079,8.23300799,132.24,132.19,2.39]
[1750638382285,73.0,132.23,132.16,8.23300799]
[1750638382485,42.52,132.22,132.16,8.23300799]
[1750638382682,50.0809,132.22,132.18,7.5626]
[1750638383078,149.7,132.21,132.13,15.31568118]
[1750638383277,7.5627,132.19,132.15,7.5644]
[1750638383682,8.23848118,132.2,132.13,15.31568118]
[1750638383984,8.23848118,132.2,132.17,7.5633]
[1750638384177,8.23848118,132.2,132.13,15.31568118]
[1750638384374,15.80088118,132.2,132.16,7.5641]
[1750638384779,8.23848118,132.2,132.16,7.5641]
[1750638384975,15.80068118,132.2,132.16,7.5641]
[1750638385176,8.23848118,132.2,132.17,7.5636]
[1750638385578,15.80058118,132.2,132.17,7.5636]
[1750638385779,15.80058118,132.2,132.16,7.564]
[1750638385983,8.23848118,132.2,132.13,7.0772]
[1750638386188,8.23848118,132.2,132.17,7.5635]
[1750638386189,7.5622,132.2,132.17,7.5635]
[1750638387282,7.5625,132.19,132.16,7.564]
[1750638387684,157.94022186,132.21,132.16,7.564]
[1750638387885,7.5623,132.2,132.13,15.31742186]
[1750638388082,157.94022186,132.21,132.13,15.31742186]
[1750638388892,7.5626,132.19,132.16,7.5639]
[1750638390795,155.10720535,132.21,132.17,7.5636]
[1750638391193,7.5624,132.2,132.16,7.564]
[1750638392290,7.5624,132.2,132.17,7.5636]
[1750638392996,155.10720535,132.21,132.14,5.40720535]
[1750638393703,149.7,132.21,132.16,5.40720535]
[1750638394393,149.7,132.21,132.19,7.5621]
[1750638394595,149.7,132.21,132.15,5.40720535]
[1750638394891,155.10720535,132.21,132.15,5.40720535]
[1750638395791,149.7,132.21,132.15,5.40720535]
[1750638396492,149.7,132.21,132.17,5.40720535]
[1750638397499,42.52,132.22,132.19,5.40720535]
[1750638397697,43.22,132.25,132.19,5.40720535]
[1750638397895,43.22,132.25,132.24,7.5597]
[1750638398100,43.22,132.25,132.23,5.40720535]
[1750638399602,43.22,132.25,132.24,7.5597]
[1750638401601,43.22,132.25,132.22,7.5603]
[1750638402002,43.22,132.25,132.2,5.40720535]
[1750638402705,50.7791,132.25,132.21,7.5611]
[1750638402901,50.7791,132.25,132.2,5.40720535]
[1750638403794,43.22,132.25,132.22,5.40720535]
[1750638404193,43.22,132.25,132.15,43.22]
[1750638404498,43.22,132.25,132.2,5.40720535]
[1750638404900,50.7793,132.25,132.22,7.5608]
[1750638405101,43.22,132.25,132.22,7.5608]
[1750638406103,50.7794,132.25,132.22,7.5608]
[1750638406505,43.22,132.25,132.21,7.5612]
[1750638406707,149.02,132.24,132.18,5.40720535]
[1750638407500,149.02,132.24,132.15,10.81]
[1750638407706,7.5607,132.23,132.2,7.5618]
[1750638408603,149.02,132.24,132.18,5.40720535]
[1750638409107,156.5802,132.24,132.18,5.40720535]
[1750638409506,156.5802,132.24,132.21,7.5609]
[1750638409903,149.02,132.24,132.18,5.40720535]
[1750638410301,7.5597,132.24,132.18,5.40720535]
[1750638410701,7.5597,132.24,132.2,7.5614]
[1750638411005,50.7793,132.25,132.18,5.40720535]
[1750638411202,50.7793,132.25,132.21,7.561]
[1750638412108,50.7793,132.25,132.16,5.40720535]
[1750638412109,43.22,132.25,132.2,5.40720535]
[1750638412707,43.22,132.25,132.2,7.90940535]
[1750638412905,43.22,132.25,132.22,5.40720535]
[1750638413211,50.7574,132.28,132.25,7.5591]
[1750638413610,6.15134358,132.27,132.25,7.5591]
[1750638413906,50.7574,132.28,132.25,7.5591]
[1750638414107,6.15134358,132.27,132.25,7.5591]
[1750638414301,50.7574,132.28,132.25,7.5591]
[1750638414509,6.15134358,132.27,132.25,7.5591]
[1750638414711,43.2,132.28,132.24,5.40720535]
[1750638415414,43.2,132.28,132.27,7.558]
[1750638415816,652.84,132.3,132.28,7.557]
[1750638416112,652.84,132.3,132.26,5.40720535]
[1750638416312,43.2,132.31,132.28,5.40720535]
[1750638416518,43.2,132.31,132.3,7.5562]
[1750638416811,43.2,132.34,132.28,5.40720535]
[1750638417111,6.14901925,132.33,132.31,7.5552]
[1750638417319,43.2,132.34,132.31,7.5552]
[1750638417516,6.17126218,132.33,132.32,7.5551]
[1750638417713,43.2,132.34,132.32,7.5551]
[1750638418915,43.2,132.34,132.31,7.5554]
[1750638419114,43.2,132.34,132.26,44.6953]
[1750638419312,43.2,132.34,132.27,5.40720535]
[1750638419313,6.16411595,132.33,132.27,5.40720535]
[1750638419512,7.5547,132.33,132.27,5.40720535]
[1750638419816,7.5547,132.33,132.29,7.5565]
[1750638420515,5.40720535,132.32,132.26,2.4353]
[1750638420711,154.80633368,132.31,132.24,5.40720535]
[1750638420913,47.66720535,132.3,132.24,5.40720535]
[1750638422112,7.5569,132.29,132.26,7.5582]
[1750638422315,47.66720535,132.3,132.26,7.5582]
[1750638422717,55.22380535,132.3,132.26,7.5582]
[1750638423619,42.26,132.3,132.24,5.40720535]
[1750638424418,42.26,132.3,132.27,7.5576]
[1750638425321,42.26,132.3,132.26,5.40720535]
[1750638425514,42.26,132.3,132.28,5.40720535]
[1750638425714,42.26,132.33,132.28,5.40720535]
[1750638426022,42.26,132.33,132.3,5.40720535]
[1750638426619,42.26,132.33,132.29,5.40720535]
[1750638427819,42.26,132.33,132.3,7.5559]
[1750638428018,42.26,132.33,132.29,5.40720535]
[1750638429213,42.26,132.33,132.32,7.5551]
[1750638430522,42.24,132.36,132.34,7.5539]
[1750638430926,42.24,132.36,132.33,7.5543]
[1750638431123,42.24,132.36,132.31,5.40720535]
[1750638431626,5.39523797,132.33,132.26,10.10773797]
[1750638431825,5.39523797,132.33,132.26,2.4121]
[1750638431826,190.54,132.32,132.26,2.4121]
[1750638432726,190.54,132.32,132.24,8.22561941]
[1750638432915,7.5559,132.31,132.28,7.5572]
[1750638433322,198.76598057,132.32,132.28,7.5572]
[1750638433517,206.32148057,132.32,132.24,8.22598057]
[1750638433725,198.0955,132.32,132.29,7.5567]
[1750638437132,190.54,132.32,132.3,7.5562]
[1750638437432,190.54,132.32,132.25,8.22598057]
[1750638437633,198.0952,132.32,132.29,7.5565]
[1750638438023,190.54,132.32,132.29,7.5564]
[1750638438226,190.54,132.32,132.25,10.65898057]
[1750638438425,190.54,132.32,132.27,8.22598057]
[1750638441226,198.0952,132.32,132.29,7.5565]
[1750638441521,198.0952,132.32,132.26,2.3196]
[1750638441929,190.54,132.32,132.27,8.22598057]
[1750638442331,190.54,132.32,132.29,7.5565]
[1750638442831,190.54,132.32,132.27,8.22598057]
[1750638443528,198.0951,132.32,132.27,8.22598057]
[1750638443737,198.0951,132.32,132.26,2.3196]
[1750638444230,7.5557,132.31,132.26,2.3196]
[1750638444429,190.54,132.32,132.26,2.3196]
[1750638444729,198.0954,132.32,132.28,7.5569]
[1750638445530,190.54,132.32,132.26,2.3196]
[1750638445737,190.54,132.32,132.27,8.22598057]
[1750638446527,42.24,132.35,132.3,8.21820216]
[1750638446934,42.24,132.39,132.34,8.21820216]
[1750638447226,42.24,132.39,132.36,8.21820216]
[1750638447633,42.24,132.39,132.38,7.5517]
[1750638451940,190.0,132.42,132.37,8.21034253]
[1750638452447,190.0,132.42,132.39,7.5507]